[Event "Titled Tuesday Blitz August 16 Late 2022"]
[White "Krzywda, Andrzej"]
[Black "Rytenko, Vsevolod"]
[WhiteFideId "1114565"]
[BlackFideId "14133040"]
[WhiteElo "2098"]
[BlackElo "2120"]
[Result "1-0"]
[Round "06"]
[TimeControl "180+1"]
[Date "2022.08.18"]
[WhiteClock "0:00:00"]
[BlackClock "0:00:00"]

1. e4 {[%clk 0:00:00]}  c5 {[%clk 0:00:00]} 2. Nc3 {[%clk 0:00:00]}  d6 {[%clk 0:00:00]} 3. f4 {[%clk 0:00:00]}  Nf6 {[%clk 0:00:00]} 4. Nf3 {[%clk 0:00:00]}  Nc6 {[%clk 0:00:00]} 5. Bb5 {[%clk 0:00:00]}  Bd7 {[%clk 0:00:00]} 6. a4 {[%clk 0:00:00]}  a6 {[%clk 0:00:00]} 7. Bxc6 {[%clk 0:00:00]}  Bxc6 {[%clk 0:00:00]} 8. d3 {[%clk 0:00:00]}  d5 {[%clk 0:00:00]} 9. e5 {[%clk 0:00:00]}  d4 {[%clk 0:00:00]} 10. exf6 {[%clk 0:00:00]}  dxc3 {[%clk 0:00:00]} 11. fxg7 {[%clk 0:00:00]}  Bxg7 {[%clk 0:00:00]} 12. b3 {[%clk 0:00:00]}  Qd6 {[%clk 0:00:00]} 13. Qe2 {[%clk 0:00:00]}  O-O-O {[%clk 0:00:00]} 14. Ba3 {[%clk 0:00:00]}  Qxf4 {[%clk 0:00:00]} 15. O-O {[%clk 0:00:00]}  Bd4+ {[%clk 0:00:00]} 16. Nxd4 {[%clk 0:00:00]}  Qxd4+ {[%clk 0:00:00]} 17. Qf2 {[%clk 0:00:00]}  Rhg8 {[%clk 0:00:00]} 18. g3 {[%clk 0:00:00]}  Qd5 {[%clk 0:00:00]} 19. Qf5+ {[%clk 0:00:00]}  Kb8 {[%clk 0:00:00]} 20. Qxd5 {[%clk 0:00:00]}  Bxd5 {[%clk 0:00:00]} 21. Bxc5 {[%clk 0:00:00]}  Rd7 {[%clk 0:00:00]} 22. Rae1 {[%clk 0:00:00]}  Re8 {[%clk 0:00:00]} 23. Bb4 {[%clk 0:00:00]}  Ka8 {[%clk 0:00:00]} 24. Re5 {[%clk 0:00:00]}  e6 {[%clk 0:00:00]} 25. Rh5 {[%clk 0:00:00]}  f5 {[%clk 0:00:00]} 26. Rf4 {[%clk 0:00:00]}  Rc8 {[%clk 0:00:00]} 27. Rfh4 {[%clk 0:00:00]}  Rcc7 {[%clk 0:00:00]} 28. Ba5 {[%clk 0:00:00]}  Rc5 {[%clk 0:00:00]} 29. Bb4 {[%clk 0:00:00]}  Rcc7 {[%clk 0:00:00]} 30. Ba5 {[%clk 0:00:00]}  Rc6 {[%clk 0:00:00]} 31. Rxh7 {[%clk 0:00:00]}  Rxh7 {[%clk 0:00:00]} 32. Rxh7 {[%clk 0:00:00]}  b6 {[%clk 0:00:00]} 33. Bb4 {[%clk 0:00:00]}  Bxb3 {[%clk 0:00:00]} 34. Rh8+ {[%clk 0:00:00]}  Kb7 {[%clk 0:00:00]} 35. Rh7+ {[%clk 0:00:00]}  Kc8 {[%clk 0:00:00]} 36. Rh8+ {[%clk 0:00:00]}  Kd7 {[%clk 0:00:00]} 37. Rh7+ {[%clk 0:00:00]}  Ke8 {[%clk 0:00:00]} 38. cxb3 {[%clk 0:00:00]}  c2 {[%clk 0:00:00]} 39. Bd2 {[%clk 0:00:00]}  Rc3 {[%clk 0:00:00]} 40. Kf2 {[%clk 0:00:00]}  Rxd3 {[%clk 0:00:00]} 41. Bf4 {[%clk 0:00:00]}  e5 {[%clk 0:00:00]} 42. Bg5 {[%clk 0:00:00]}  f4 {[%clk 0:00:00]} 43. Rc7 {[%clk 0:00:00]}  Rd2+ {[%clk 0:00:00]} 44. Kf3 {[%clk 0:00:00]}  Rxh2 {[%clk 0:00:00]} 45. gxf4 {[%clk 0:00:00]}  exf4 {[%clk 0:00:00]} 46. Bxf4 {[%clk 0:00:00]}  Rh3+ {[%clk 0:00:00]} 47. Ke4 {[%clk 0:00:00]}  Rxb3 {[%clk 0:00:00]} 48. Rxc2 {[%clk 0:00:00]}  Rb4+ {[%clk 0:00:00]} 49. Kf5 {[%clk 0:00:00]}  Rxa4 {[%clk 0:00:00]} 50. Rc6 {[%clk 0:00:00]}  Rb4 {[%clk 0:00:00]} 51. Be5 {[%clk 0:00:00]}  Kd7 {[%clk 0:00:00]} 52. Rc7+ {[%clk 0:00:00]}  Kd8 {[%clk 0:00:00]} 53. Ke6 {[%clk 0:00:00]}  Rh4 {[%clk 0:00:00]} 54. Rc6 {[%clk 0:00:00]}  Re4 {[%clk 0:00:00]} 55. Rxb6 {[%clk 0:00:00]}  Re1 {[%clk 0:00:00]} 56. Rb8# {[%clk 0:00:00]} 1-0


[Site "https://www.chess.com"]

[Event "Titled Tuesday Blitz August 16 Late 2022"]
[White "Lagowski, Patryk"]
[Black "Ribeiro, Matheus Mendes Domingues"]
[WhiteFideId "1114611"]
[BlackFideId "324226923"]
[WhiteElo "2274"]
[BlackElo "2047"]
[Result "1-0"]
[Round "06"]
[TimeControl "180+1"]
[Date "2022.08.18"]
[WhiteClock "0:00:00"]
[BlackClock "0:00:00"]

1. d4 {[%clk 0:00:00]}  e6 {[%clk 0:00:00]} 2. c4 {[%clk 0:00:00]}  d5 {[%clk 0:00:00]} 3. Nc3 {[%clk 0:00:00]}  Nf6 {[%clk 0:00:00]} 4. Nf3 {[%clk 0:00:00]}  Be7 {[%clk 0:00:00]} 5. g3 {[%clk 0:00:00]}  O-O {[%clk 0:00:00]} 6. Bg2 {[%clk 0:00:00]}  b6 {[%clk 0:00:00]} 7. O-O {[%clk 0:00:00]}  Bb7 {[%clk 0:00:00]} 8. cxd5 {[%clk 0:00:00]}  exd5 {[%clk 0:00:00]} 9. Ne5 {[%clk 0:00:00]}  c5 {[%clk 0:00:00]} 10. Bg5 {[%clk 0:00:00]}  Nc6 {[%clk 0:00:00]} 11. Bxf6 {[%clk 0:00:00]}  Bxf6 {[%clk 0:00:00]} 12. Nxc6 {[%clk 0:00:00]}  Bxc6 {[%clk 0:00:00]} 13. dxc5 {[%clk 0:00:00]}  Bxc3 {[%clk 0:00:00]} 14. bxc3 {[%clk 0:00:00]}  bxc5 {[%clk 0:00:00]} 15. c4 {[%clk 0:00:00]}  Qf6 {[%clk 0:00:00]} 16. cxd5 {[%clk 0:00:00]}  Bb5 {[%clk 0:00:00]} 17. Rc1 {[%clk 0:00:00]}  Rac8 {[%clk 0:00:00]} 18. Re1 {[%clk 0:00:00]}  Rfd8 {[%clk 0:00:00]} 19. e4 {[%clk 0:00:00]}  Qd4 {[%clk 0:00:00]} 20. Qxd4 {[%clk 0:00:00]}  cxd4 {[%clk 0:00:00]} 21. Rxc8 {[%clk 0:00:00]}  Rxc8 {[%clk 0:00:00]} 22. Rd1 {[%clk 0:00:00]}  d3 {[%clk 0:00:00]} 23. Bf1 {[%clk 0:00:00]}  d2 {[%clk 0:00:00]} 24. Bxb5 {[%clk 0:00:00]} 1-0


[Site "https://www.chess.com"]

[Event "Titled Tuesday Blitz August 16 Late 2022"]
[White "Leenhouts, Koen"]
[Black "Koepke, Christian"]
[WhiteFideId "1008439"]
[BlackFideId "4655737"]
[WhiteElo "2409"]
[BlackElo "2188"]
[Result "1-0"]
[Round "06"]
[TimeControl "180+1"]
[Date "2022.08.18"]
[WhiteClock "0:00:00"]
[BlackClock "0:00:00"]

1. e4 {[%clk 0:00:00]}  c6 {[%clk 0:00:00]} 2. d4 {[%clk 0:00:00]}  d5 {[%clk 0:00:00]} 3. e5 {[%clk 0:00:00]}  Bf5 {[%clk 0:00:00]} 4. Nc3 {[%clk 0:00:00]}  Qb6 {[%clk 0:00:00]} 5. Bd3 {[%clk 0:00:00]}  Bxd3 {[%clk 0:00:00]} 6. Qxd3 {[%clk 0:00:00]}  e6 {[%clk 0:00:00]} 7. Nce2 {[%clk 0:00:00]}  Qa6 {[%clk 0:00:00]} 8. Qxa6 {[%clk 0:00:00]}  Nxa6 {[%clk 0:00:00]} 9. Nf3 {[%clk 0:00:00]}  c5 {[%clk 0:00:00]} 10. c3 {[%clk 0:00:00]}  Ne7 {[%clk 0:00:00]} 11. dxc5 {[%clk 0:00:00]}  Nxc5 {[%clk 0:00:00]} 12. Ned4 {[%clk 0:00:00]}  a6 {[%clk 0:00:00]} 13. Ke2 {[%clk 0:00:00]}  Rc8 {[%clk 0:00:00]} 14. Be3 {[%clk 0:00:00]}  Nc6 {[%clk 0:00:00]} 15. Rhd1 {[%clk 0:00:00]}  Nd7 {[%clk 0:00:00]} 16. Bf4 {[%clk 0:00:00]}  Bc5 {[%clk 0:00:00]} 17. Nxc6 {[%clk 0:00:00]}  bxc6 {[%clk 0:00:00]} 18. Be3 {[%clk 0:00:00]}  a5 {[%clk 0:00:00]} 19. Bxc5 {[%clk 0:00:00]}  Nxc5 {[%clk 0:00:00]} 20. b4 {[%clk 0:00:00]}  Ne4 {[%clk 0:00:00]} 21. Rdc1 {[%clk 0:00:00]}  Kd7 {[%clk 0:00:00]} 22. Nd2 {[%clk 0:00:00]}  Nxd2 {[%clk 0:00:00]} 23. Kxd2 {[%clk 0:00:00]}  c5 {[%clk 0:00:00]} 24. b5 {[%clk 0:00:00]}  a4 {[%clk 0:00:00]} 25. c4 {[%clk 0:00:00]}  d4 {[%clk 0:00:00]} 26. Kd3 {[%clk 0:00:00]}  Kc7 {[%clk 0:00:00]} 27. Re1 {[%clk 0:00:00]}  Kb6 {[%clk 0:00:00]} 28. Re4 {[%clk 0:00:00]}  Rce8 {[%clk 0:00:00]} 29. Rae1 {[%clk 0:00:00]}  Re7 {[%clk 0:00:00]} 30. Rg4 {[%clk 0:00:00]}  f6 {[%clk 0:00:00]} 31. exf6 {[%clk 0:00:00]}  gxf6 {[%clk 0:00:00]} 32. Rf4 {[%clk 0:00:00]}  Rf8 {[%clk 0:00:00]} 33. g4 {[%clk 0:00:00]}  h6 {[%clk 0:00:00]} 34. h4 {[%clk 0:00:00]}  e5 {[%clk 0:00:00]} 35. Rf5 {[%clk 0:00:00]}  Re6 {[%clk 0:00:00]} 36. f3 {[%clk 0:00:00]}  Rg8 {[%clk 0:00:00]} 37. Rh5 {[%clk 0:00:00]}  Rg6 {[%clk 0:00:00]} 38. Ke4 {[%clk 0:00:00]}  Rd6 {[%clk 0:00:00]} 39. Rd1 {[%clk 0:00:00]}  Ka5 {[%clk 0:00:00]} 40. a3 {[%clk 0:00:00]}  Kb6 {[%clk 0:00:00]} 41. Rd3 {[%clk 0:00:00]}  Kc7 {[%clk 0:00:00]} 42. Kf5 {[%clk 0:00:00]}  Rg7 {[%clk 0:00:00]} 43. Rxh6 {[%clk 0:00:00]}  Rf7 {[%clk 0:00:00]} 44. h5 {[%clk 0:00:00]}  Kd7 {[%clk 0:00:00]} 45. Rg6 {[%clk 0:00:00]}  Ke7 {[%clk 0:00:00]} 46. Ke4 {[%clk 0:00:00]}  Rh7 {[%clk 0:00:00]} 47. Rd1 {[%clk 0:00:00]}  Ke6 {[%clk 0:00:00]} 48. g5 {[%clk 0:00:00]}  Rxh5 {[%clk 0:00:00]} 49. Rxf6+ {[%clk 0:00:00]}  Ke7 {[%clk 0:00:00]} 50. Rxd6 {[%clk 0:00:00]}  Kxd6 {[%clk 0:00:00]} 51. Rg1 {[%clk 0:00:00]}  Rh4+ {[%clk 0:00:00]} 52. Rg4 {[%clk 0:00:00]}  Rh1 {[%clk 0:00:00]} 53. g6 {[%clk 0:00:00]}  Rh8 {[%clk 0:00:00]} 54. g7 {[%clk 0:00:00]}  Rg8 {[%clk 0:00:00]} 55. Rg6+ {[%clk 0:00:00]}  Ke7 {[%clk 0:00:00]} 56. b6 {[%clk 0:00:00]}  Kf7 {[%clk 0:00:00]} 57. Rg4 {[%clk 0:00:00]}  d3 {[%clk 0:00:00]} 58. Kxd3 {[%clk 0:00:00]}  Rd8+ {[%clk 0:00:00]} 59. Ke3 {[%clk 0:00:00]}  Kg8 {[%clk 0:00:00]} 60. b7 {[%clk 0:00:00]}  Rb8 {[%clk 0:00:00]} 61. Ke4 {[%clk 0:00:00]}  Rxb7 {[%clk 0:00:00]} 62. Kxe5 {[%clk 0:00:00]}  Rb3 {[%clk 0:00:00]} 63. f4 {[%clk 0:00:00]}  Rxa3 {[%clk 0:00:00]} 64. f5 {[%clk 0:00:00]}  Re3+ {[%clk 0:00:00]} 65. Kf6 {[%clk 0:00:00]}  a3 {[%clk 0:00:00]} 66. Rh4 {[%clk 0:00:00]}  Rh3 {[%clk 0:00:00]} 67. Rxh3 {[%clk 0:00:00]}  a2 {[%clk 0:00:00]} 68. Rh8# {[%clk 0:00:00]} 1-0


[Site "https://www.chess.com"]

[Event "Titled Tuesday Blitz August 16 Late 2022"]
[White "Lehtosaari, Mauri"]
[Black "Novikova, Galina"]
[WhiteFideId "501999"]
[BlackFideId "4157095"]
[WhiteElo "2200"]
[BlackElo "1923"]
[Result "1-0"]
[Round "06"]
[TimeControl "180+1"]
[Date "2022.08.18"]
[WhiteClock "0:00:00"]
[BlackClock "0:00:00"]

1. d4 {[%clk 0:00:00]}  e6 {[%clk 0:00:00]} 2. Nf3 {[%clk 0:00:00]}  f5 {[%clk 0:00:00]} 3. Bf4 {[%clk 0:00:00]}  Nf6 {[%clk 0:00:00]} 4. e3 {[%clk 0:00:00]}  Be7 {[%clk 0:00:00]} 5. Be2 {[%clk 0:00:00]}  O-O {[%clk 0:00:00]} 6. O-O {[%clk 0:00:00]}  d6 {[%clk 0:00:00]} 7. h3 {[%clk 0:00:00]}  Qe8 {[%clk 0:00:00]} 8. c4 {[%clk 0:00:00]}  Bd8 {[%clk 0:00:00]} 9. Bh2 {[%clk 0:00:00]}  Nc6 {[%clk 0:00:00]} 10. Nc3 {[%clk 0:00:00]}  e5 {[%clk 0:00:00]} 11. c5 {[%clk 0:00:00]}  e4 {[%clk 0:00:00]} 12. Nd2 {[%clk 0:00:00]}  Be7 {[%clk 0:00:00]} 13. b4 {[%clk 0:00:00]}  Kh8 {[%clk 0:00:00]} 14. a3 {[%clk 0:00:00]}  a6 {[%clk 0:00:00]} 15. Nc4 {[%clk 0:00:00]}  d5 {[%clk 0:00:00]} 16. Ne5 {[%clk 0:00:00]}  Nxe5 {[%clk 0:00:00]} 17. Bxe5 {[%clk 0:00:00]}  c6 {[%clk 0:00:00]} 18. a4 {[%clk 0:00:00]}  Nd7 {[%clk 0:00:00]} 19. Bh2 {[%clk 0:00:00]}  g5 {[%clk 0:00:00]} 20. f4 {[%clk 0:00:00]}  gxf4 {[%clk 0:00:00]} 21. Bxf4 {[%clk 0:00:00]}  Bf6 {[%clk 0:00:00]} 22. Bh5 {[%clk 0:00:00]}  Qe7 {[%clk 0:00:00]} 23. Qe2 {[%clk 0:00:00]}  Rg8 {[%clk 0:00:00]} 24. b5 {[%clk 0:00:00]}  Bg5 {[%clk 0:00:00]} 25. Bd6 {[%clk 0:00:00]}  Qf6 {[%clk 0:00:00]} 26. bxc6 {[%clk 0:00:00]}  bxc6 {[%clk 0:00:00]} 27. Rab1 {[%clk 0:00:00]}  Qh6 {[%clk 0:00:00]} 28. Nd1 {[%clk 0:00:00]}  Nf6 {[%clk 0:00:00]} 29. Be5 {[%clk 0:00:00]}  Be6 {[%clk 0:00:00]} 30. Rb6 {[%clk 0:00:00]}  Rg7 {[%clk 0:00:00]} 31. Rxc6 {[%clk 0:00:00]}  Nxh5 {[%clk 0:00:00]} 32. Rxe6 {[%clk 0:00:00]}  Qxe6 {[%clk 0:00:00]} 33. Qxh5 {[%clk 0:00:00]}  Rg8 {[%clk 0:00:00]} 34. Qxg5 {[%clk 0:00:00]}  Qf7 {[%clk 0:00:00]} 35. Rxf5 {[%clk 0:00:00]}  Qb7 {[%clk 0:00:00]} 36. Bxg7+ {[%clk 0:00:00]}  Rxg7 {[%clk 0:00:00]} 37. Rf8+ {[%clk 0:00:00]}  Rg8 {[%clk 0:00:00]} 38. Qxg8# {[%clk 0:00:00]} 1-0


[Site "https://www.chess.com"]

[Event "Titled Tuesday Blitz August 16 Late 2022"]
[White "Leiva, Gianmarco"]
[Black "Wadsworth, Matthew J"]
[WhiteFideId "3804399"]
[BlackFideId "415804"]
[WhiteElo "2323"]
[BlackElo "2294"]
[Result "0-1"]
[Round "06"]
[TimeControl "180+1"]
[Date "2022.08.16"]
[WhiteClock "0:00:01"]
[BlackClock "0:00:07"]

1. e4 {[%clk 0:03:00]}  c5 {[%clk 0:02:58]} 2. Nf3 {[%clk 0:02:59]}  e6 {[%clk 0:02:58]} 3. c3 {[%clk 0:02:57]}  d5 {[%clk 0:02:57]} 4. exd5 {[%clk 0:02:57]}  Qxd5 {[%clk 0:02:58]} 5. d4 {[%clk 0:02:57]}  Nf6 {[%clk 0:02:57]} 6. Na3 {[%clk 0:02:58]}  Qd8 {[%clk 0:02:55]} 7. Be3 {[%clk 0:02:41]}  cxd4 {[%clk 0:02:47]} 8. Nxd4 {[%clk 0:02:41]}  Bxa3 {[%clk 0:02:45]} 9. Qa4+ {[%clk 0:02:42]}  Bd7 {[%clk 0:02:38]} 10. Qxa3 {[%clk 0:02:42]}  Qe7 {[%clk 0:02:38]} 11. Qb3 {[%clk 0:02:40]}  Bc6 {[%clk 0:02:36]} 12. Nxc6 {[%clk 0:02:39]}  Nxc6 {[%clk 0:02:37]} 13. Be2 {[%clk 0:02:30]}  O-O {[%clk 0:02:37]} 14. O-O {[%clk 0:02:27]}  Nd5 {[%clk 0:02:35]} 15. Bd2 {[%clk 0:02:26]}  f5 {[%clk 0:02:35]} 16. Rfe1 {[%clk 0:02:25]}  Rad8 {[%clk 0:02:23]} 17. Bf3 {[%clk 0:02:21]}  Qf6 {[%clk 0:02:18]} 18. Qxb7 {[%clk 0:02:01]}  Ne5 {[%clk 0:02:18]} 19. Bxd5 {[%clk 0:01:28]}  Rxd5 {[%clk 0:02:18]} 20. Be3 {[%clk 0:01:28]}  Ng4 {[%clk 0:02:17]} 21. Bd4 {[%clk 0:01:28]}  Rxd4 {[%clk 0:01:39]} 22. cxd4 {[%clk 0:01:29]}  Qh4 {[%clk 0:01:39]} 23. Qc7 {[%clk 0:00:43]}  Qxf2+ {[%clk 0:01:35]} 24. Kh1 {[%clk 0:00:43]}  Qxd4 {[%clk 0:01:35]} 25. h3 {[%clk 0:00:39]}  Nf2+ {[%clk 0:01:32]} 26. Kh2 {[%clk 0:00:40]}  Rf6 {[%clk 0:01:14]} 27. Rad1 {[%clk 0:00:37]}  Nxd1 {[%clk 0:01:09]} 28. Qc8+ {[%clk 0:00:22]}  Kf7 {[%clk 0:01:09]} 29. Qc7+ {[%clk 0:00:23]}  Kg6 {[%clk 0:01:05]} 30. Qg3+ {[%clk 0:00:21]}  Kh6 {[%clk 0:01:04]} 31. Qb3 {[%clk 0:00:13]}  Nf2 {[%clk 0:01:00]} 32. Rxe6 {[%clk 0:00:12]}  Ne4 {[%clk 0:00:45]} 33. Rxf6+ {[%clk 0:00:03]}  Nxf6 {[%clk 0:00:45]} 34. Qb7 {[%clk 0:00:03]}  f4 {[%clk 0:00:45]} 35. b4 {[%clk 0:00:02]}  Qf2 {[%clk 0:00:42]} 36. a4 {[%clk 0:00:02]}  Qg3+ {[%clk 0:00:33]} 37. Kh1 {[%clk 0:00:02]}  Qe1+ {[%clk 0:00:30]} 38. Kh2 {[%clk 0:00:02]}  g5 {[%clk 0:00:22]} 39. Qxa7 {[%clk 0:00:01]}  Qxb4 {[%clk 0:00:20]} 40. Qf7 {[%clk 0:00:01]}  Qd4 {[%clk 0:00:18]} 41. Qe6 {[%clk 0:00:01]}  Kg6 {[%clk 0:00:16]} 42. a5 {[%clk 0:00:02]}  h5 {[%clk 0:00:15]} 43. a6 {[%clk 0:00:02]}  g4 {[%clk 0:00:15]} 44. hxg4 {[%clk 0:00:02]}  hxg4 {[%clk 0:00:15]} 45. a7 {[%clk 0:00:01]}  Qxa7 {[%clk 0:00:14]} 46. Qe5 {[%clk 0:00:02]}  Qf2 {[%clk 0:00:13]} 47. Kh1 {[%clk 0:00:02]}  Qh4+ {[%clk 0:00:11]} 48. Kg1 {[%clk 0:00:02]}  Qg3 {[%clk 0:00:11]} 49. Kh1 {[%clk 0:00:02]}  Qe3 {[%clk 0:00:09]} 50. Qb5 {[%clk 0:00:01]}  Qe4 {[%clk 0:00:08]} 51. Qc5 {[%clk 0:00:01]}  g3 {[%clk 0:00:07]} 52. Kg1 {[%clk 0:00:01]}  Qe1# {[%clk 0:00:07]} 0-1


[Site "https://www.chess.com"]

[Event "Titled Tuesday Blitz August 16 Late 2022"]
[White "Lenderman, Aleksandr"]
[Black "Andreikin, Dmitry"]
[WhiteFideId "2021285"]
[BlackFideId "4158814"]
[WhiteElo "2607"]
[BlackElo "2736"]
[Result "0-1"]
[Round "06"]
[TimeControl "180+1"]
[Date "2022.08.16"]
[WhiteClock "0:00:32"]
[BlackClock "0:00:36"]

1. e4 {[%clk 0:03:00]}  c5 {[%clk 0:02:59]} 2. c3 {[%clk 0:03:00]}  d5 {[%clk 0:02:56]} 3. exd5 {[%clk 0:03:00]}  Qxd5 {[%clk 0:02:57]} 4. d4 {[%clk 0:03:01]}  Nf6 {[%clk 0:02:57]} 5. Nf3 {[%clk 0:03:00]}  e6 {[%clk 0:02:58]} 6. Bd3 {[%clk 0:02:54]}  Be7 {[%clk 0:02:56]} 7. O-O {[%clk 0:02:54]}  O-O {[%clk 0:02:56]} 8. dxc5 {[%clk 0:02:53]}  Qxc5 {[%clk 0:02:54]} 9. Qe2 {[%clk 0:02:53]}  Nbd7 {[%clk 0:02:52]} 10. Nbd2 {[%clk 0:02:53]}  b6 {[%clk 0:02:51]} 11. Ne4 {[%clk 0:02:53]}  Qc7 {[%clk 0:02:51]} 12. Bg5 {[%clk 0:02:52]}  Bb7 {[%clk 0:02:51]} 13. Rad1 {[%clk 0:02:52]}  Rad8 {[%clk 0:02:48]} 14. Rfe1 {[%clk 0:02:52]}  Rfe8 {[%clk 0:02:39]} 15. Nxf6+ {[%clk 0:02:52]}  Bxf6 {[%clk 0:02:38]} 16. Bxf6 {[%clk 0:02:35]}  Nxf6 {[%clk 0:02:39]} 17. Ne5 {[%clk 0:02:35]}  h6 {[%clk 0:02:26]} 18. Bc2 {[%clk 0:02:31]}  Rxd1 {[%clk 0:02:25]} 19. Rxd1 {[%clk 0:02:31]}  Rd8 {[%clk 0:02:22]} 20. Rxd8+ {[%clk 0:02:31]}  Qxd8 {[%clk 0:02:23]} 21. Bb3 {[%clk 0:02:26]}  Qd6 {[%clk 0:02:22]} 22. h3 {[%clk 0:02:24]}  Ne4 {[%clk 0:02:16]} 23. Nf3 {[%clk 0:02:20]}  Qf4 {[%clk 0:02:12]} 24. Qe3 {[%clk 0:02:13]}  Qxe3 {[%clk 0:02:11]} 25. fxe3 {[%clk 0:02:14]}  Kf8 {[%clk 0:02:10]} 26. Bc2 {[%clk 0:02:13]}  Ke7 {[%clk 0:02:03]} 27. Nd4 {[%clk 0:02:11]}  f5 {[%clk 0:01:58]} 28. Bb3 {[%clk 0:01:52]}  Nc5 {[%clk 0:01:47]} 29. Bc4 {[%clk 0:01:52]}  Kf6 {[%clk 0:01:43]} 30. b4 {[%clk 0:01:52]}  Ne4 {[%clk 0:01:42]} 31. Bxe6 {[%clk 0:01:52]}  Nxc3 {[%clk 0:01:40]} 32. Bxf5 {[%clk 0:01:43]}  Nxa2 {[%clk 0:01:38]} 33. b5 {[%clk 0:01:42]}  a5 {[%clk 0:01:29]} 34. bxa6 {[%clk 0:01:40]}  Bxa6 {[%clk 0:01:29]} 35. Kf2 {[%clk 0:01:36]}  Nc3 {[%clk 0:01:28]} 36. Bc2 {[%clk 0:01:36]}  Bb7 {[%clk 0:01:26]} 37. Bd3 {[%clk 0:01:35]}  Ne4+ {[%clk 0:01:21]} 38. Kg1 {[%clk 0:01:31]}  Nc3 {[%clk 0:01:16]} 39. Kf2 {[%clk 0:01:30]}  Nd1+ {[%clk 0:01:12]} 40. Ke2 {[%clk 0:01:29]}  Nb2 {[%clk 0:01:13]} 41. e4 {[%clk 0:01:25]}  Nxd3 {[%clk 0:01:02]} 42. Kxd3 {[%clk 0:01:25]}  Ke5 {[%clk 0:01:02]} 43. Ke3 {[%clk 0:00:58]}  Bxe4 {[%clk 0:01:01]} 44. g3 {[%clk 0:00:59]}  Bf5 {[%clk 0:00:53]} 45. h4 {[%clk 0:00:59]}  Bd7 {[%clk 0:00:52]} 46. Nc2 {[%clk 0:00:52]}  Kd5 {[%clk 0:00:51]} 47. Nb4+ {[%clk 0:00:47]}  Kc4 {[%clk 0:00:49]} 48. Nd3 {[%clk 0:00:47]}  Kc3 {[%clk 0:00:47]} 49. Ne5 {[%clk 0:00:42]}  Be8 {[%clk 0:00:46]} 50. Nf3 {[%clk 0:00:35]}  b5 {[%clk 0:00:45]} 51. Nd4 {[%clk 0:00:36]}  b4 {[%clk 0:00:45]} 52. Ne2+ {[%clk 0:00:35]}  Kc4 {[%clk 0:00:39]} 53. Kd2 {[%clk 0:00:35]}  b3 {[%clk 0:00:39]} 54. Kc1 {[%clk 0:00:35]}  Bf7 {[%clk 0:00:37]} 55. Kb2 {[%clk 0:00:33]}  Kd3 {[%clk 0:00:37]} 56. Nf4+ {[%clk 0:00:32]}  Ke4 {[%clk 0:00:36]} 0-1


[Site "https://www.chess.com"]

[Event "Titled Tuesday Blitz August 16 Late 2022"]
[White "Liu, Casper"]
[Black "Winkels, Marcel"]
[WhiteFideId "1454153"]
[BlackFideId "1003887"]
[WhiteElo "2025"]
[BlackElo "1900"]
[Result "1-0"]
[Round "06"]
[TimeControl "180+1"]
[Date "2022.08.18"]
[WhiteClock "0:00:00"]
[BlackClock "0:00:00"]

1. e4 {[%clk 0:00:00]}  c5 {[%clk 0:00:00]} 2. Nf3 {[%clk 0:00:00]}  d6 {[%clk 0:00:00]} 3. Bb5+ {[%clk 0:00:00]}  Bd7 {[%clk 0:00:00]} 4. Bxd7+ {[%clk 0:00:00]}  Nxd7 {[%clk 0:00:00]} 5. b3 {[%clk 0:00:00]}  Ngf6 {[%clk 0:00:00]} 6. Qe2 {[%clk 0:00:00]}  e6 {[%clk 0:00:00]} 7. Bb2 {[%clk 0:00:00]}  Be7 {[%clk 0:00:00]} 8. Nc3 {[%clk 0:00:00]}  O-O {[%clk 0:00:00]} 9. O-O-O {[%clk 0:00:00]}  a6 {[%clk 0:00:00]} 10. g4 {[%clk 0:00:00]}  Qc7 {[%clk 0:00:00]} 11. g5 {[%clk 0:00:00]}  Nh5 {[%clk 0:00:00]} 12. h4 {[%clk 0:00:00]}  b6 {[%clk 0:00:00]} 13. Rdg1 {[%clk 0:00:00]}  Ne5 {[%clk 0:00:00]} 14. Nxe5 {[%clk 0:00:00]}  Nf4 {[%clk 0:00:00]} 15. Qf3 {[%clk 0:00:00]}  dxe5 {[%clk 0:00:00]} 16. Ne2 {[%clk 0:00:00]}  Nxe2+ {[%clk 0:00:00]} 17. Qxe2 {[%clk 0:00:00]}  b5 {[%clk 0:00:00]} 18. h5 {[%clk 0:00:00]}  Rfd8 {[%clk 0:00:00]} 19. g6 {[%clk 0:00:00]}  fxg6 {[%clk 0:00:00]} 20. hxg6 {[%clk 0:00:00]}  h6 {[%clk 0:00:00]} 21. Qh5 {[%clk 0:00:00]}  Bf6 {[%clk 0:00:00]} 22. f4 {[%clk 0:00:00]}  c4 {[%clk 0:00:00]} 23. fxe5 {[%clk 0:00:00]}  Be7 {[%clk 0:00:00]} 24. Qg4 {[%clk 0:00:00]}  Qd7 {[%clk 0:00:00]} 25. Rg2 {[%clk 0:00:00]}  Rf8 {[%clk 0:00:00]} 26. Kb1 {[%clk 0:00:00]}  cxb3 {[%clk 0:00:00]} 27. axb3 {[%clk 0:00:00]}  a5 {[%clk 0:00:00]} 28. d4 {[%clk 0:00:00]}  Qc8 {[%clk 0:00:00]} 29. Bc1 {[%clk 0:00:00]}  a4 {[%clk 0:00:00]} 30. Bxh6 {[%clk 0:00:00]}  axb3 {[%clk 0:00:00]} 31. Bc1 {[%clk 0:00:00]}  Ra1+ {[%clk 0:00:00]} 32. Kxa1 {[%clk 0:00:00]}  Qa8+ {[%clk 0:00:00]} 33. Kb2 {[%clk 0:00:00]}  Qa2+ {[%clk 0:00:00]} 34. Kc3 {[%clk 0:00:00]}  Rc8+ {[%clk 0:00:00]} 35. Kd3 {[%clk 0:00:00]}  b2 {[%clk 0:00:00]} 36. Rh8+ {[%clk 0:00:00]}  Kxh8 {[%clk 0:00:00]} 37. Qh5+ {[%clk 0:00:00]}  Kg8 {[%clk 0:00:00]} 38. Qh7+ {[%clk 0:00:00]}  Kf8 {[%clk 0:00:00]} 39. Qh8# {[%clk 0:00:00]} 1-0


[Site "https://www.chess.com"]

[Event "Titled Tuesday Blitz August 16 Late 2022"]
[White "Lopez Perdomo, Juan David"]
[Black "Kujawski, Adam"]
[WhiteFideId "4405137"]
[BlackFideId "1100920"]
[WhiteElo "1965"]
[BlackElo "1972"]
[Result "0-1"]
[Round "06"]
[TimeControl "180+1"]
[Date "2022.08.18"]
[WhiteClock "0:00:00"]
[BlackClock "0:00:00"]

1. e4 {[%clk 0:00:00]}  e5 {[%clk 0:00:00]} 2. Nf3 {[%clk 0:00:00]}  Nc6 {[%clk 0:00:00]} 3. Bb5 {[%clk 0:00:00]}  a6 {[%clk 0:00:00]} 4. Ba4 {[%clk 0:00:00]}  Nf6 {[%clk 0:00:00]} 5. d3 {[%clk 0:00:00]}  b5 {[%clk 0:00:00]} 6. Bb3 {[%clk 0:00:00]}  Bc5 {[%clk 0:00:00]} 7. h3 {[%clk 0:00:00]}  d6 {[%clk 0:00:00]} 8. c3 {[%clk 0:00:00]}  Be6 {[%clk 0:00:00]} 9. Bxe6 {[%clk 0:00:00]}  fxe6 {[%clk 0:00:00]} 10. Qb3 {[%clk 0:00:00]}  Qd7 {[%clk 0:00:00]} 11. a4 {[%clk 0:00:00]}  Rb8 {[%clk 0:00:00]} 12. axb5 {[%clk 0:00:00]}  axb5 {[%clk 0:00:00]} 13. Ra6 {[%clk 0:00:00]}  O-O {[%clk 0:00:00]} 14. Rxc6 {[%clk 0:00:00]}  Qxc6 {[%clk 0:00:00]} 15. Qxe6+ {[%clk 0:00:00]}  Kh8 {[%clk 0:00:00]} 16. Nxe5 {[%clk 0:00:00]}  Bxf2+ {[%clk 0:00:00]} 17. Kxf2 {[%clk 0:00:00]}  Ng4+ {[%clk 0:00:00]} 18. Kg3 {[%clk 0:00:00]}  Nxe5 {[%clk 0:00:00]} 19. Rd1 {[%clk 0:00:00]}  Rbe8 {[%clk 0:00:00]} 20. Qd5 {[%clk 0:00:00]}  Qd7 {[%clk 0:00:00]} 21. Bf4 {[%clk 0:00:00]}  c6 {[%clk 0:00:00]} 22. Qa2 {[%clk 0:00:00]}  Ng6 {[%clk 0:00:00]} 23. Rf1 {[%clk 0:00:00]}  Qe7 {[%clk 0:00:00]} 0-1


[Site "https://www.chess.com"]